bitfinex/quotes_SOLUSD_20250403
["timestamp","ask_amount","ask_price","bid_price","bid_amount"]
[1743712176933,25.78896319,115.26,115.21,17.11246319]
[1743712178379,17.11246319,115.26,115.21,17.11246319]
[1743712178656,25.78846319,115.26,115.22,8.679]
[1743712178838,17.11246319,115.26,115.22,8.679]
[1743712180665,25.78856319,115.26,115.21,25.79186319]
[1743712181163,17.11246319,115.25,115.21,8.6794]
[1743712181363,17.11246319,115.24,115.2,25.79256319]
[1743712181560,17.11246319,115.24,115.2,8.6801]
[1743712184564,25.79056319,115.24,115.2,8.6801]
[1743712185364,8.6781,115.24,115.2,8.6801]
[1743712185566,45.78946319,115.25,115.2,25.79256319]
[1743712186356,17.11246319,115.24,115.2,25.79256319]
[1743712187770,17.11246319,115.25,115.2,47.49386319]
[1743712187953,17.11246319,115.26,115.21,17.11246319]
[1743712188387,17.11246319,115.26,115.22,17.11246319]
[1743712189575,17.11246319,115.26,115.23,8.6782]
[1743712190072,20.0,115.27,115.23,8.6782]
[1743712190276,17.11246319,115.26,115.23,8.6782]
[1743712196374,17.11246319,115.26,115.23,30.3739]
[1743712196680,17.11246319,115.28,115.24,17.11246319]
[1743712198369,16.11246319,115.28,115.23,25.79066319]
[1743712199054,16.11246319,115.28,115.23,47.48636319]
[1743712199765,16.11246319,115.28,115.24,17.11246319]
[1743712200082,17.11246319,115.29,115.24,17.11246319]
[1743712200469,17.11246319,115.29,115.26,8.676]
[1743712202081,17.11246319,115.28,115.26,8.676]
[1743712202788,17.11246319,115.28,115.25,8.6767]
[1743712203079,17.11246319,115.27,115.24,8.6772]
[1743712204775,17.11246319,115.28,115.24,8.6772]
[1743712205885,17.11246319,115.27,115.24,8.6772]
[1743712206071,17.11246319,115.27,115.23,8.6779]
[1743712206770,25.78776319,115.27,115.23,8.6779]
[1743712207287,0.14216157,115.27,115.23,8.6779]
[1743712207465,17.25462476,115.27,115.23,25.79036319]
[1743712208989,17.25462476,115.27,115.23,8.6779]
[1743712209888,25.92992476,115.27,115.23,8.6779]
[1743712210582,17.11246319,115.26,115.22,8.6786]
[1743712211488,25.78866319,115.26,115.22,8.6786]
[1743712213488,17.11246319,115.26,115.22,8.6786]
[1743712215393,17.11246319,115.26,115.22,25.79106319]
[1743712216288,37.25462476,115.27,115.22,25.79106319]
[1743712216596,17.25462476,115.29,115.24,17.11246319]
[1743712217295,17.25462476,115.29,115.25,8.6767]
[1743712217587,0.14216157,115.3,115.25,8.6767]
[1743712217777,17.11246319,115.29,115.25,25.78916319]
[1743712217972,0.14216157,115.27,115.24,8.6771]
[1743712218179,17.11246319,115.27,115.22,25.79146319]
[1743712218485,17.11246319,115.26,115.22,8.679]
[1743712218682,17.11246319,115.25,115.22,8.679]
[1743712219586,25.78866319,115.26,115.22,8.679]
[1743712219995,17.11246319,115.26,115.22,8.679]
[1743712222505,17.11246319,115.25,115.21,8.6798]
[1743712222801,17.11246319,115.25,115.21,25.79226319]
[1743712222977,45.78856319,115.26,115.21,8.6798]
[1743712223173,0.14216157,115.25,115.21,25.79226319]
[1743712224303,25.93142476,115.25,115.21,8.6798]
[1743712224601,25.93142476,115.25,115.21,25.79226319]
[1743712224777,25.93142476,115.25,115.21,24.79226319]
[1743712225184,17.11246319,115.24,115.2,8.6801]
[1743712225487,16.51896157,115.25,115.2,8.1801]
[1743712225679,24.95462476,115.25,115.2,25.29256319]
[1743712225882,24.95462476,115.25,115.2,46.49386319]
[1743712226100,7.7,115.25,115.21,17.11246319]
[1743712226595,17.11246319,115.26,115.21,17.11246319]
[1743712226900,17.11246319,115.25,115.21,17.11246319]
[1743712227073,17.11246319,115.25,115.2,24.79256319]
[1743712227791,28.6762,115.26,115.2,7.6801]
[1743712227792,17.25462476,115.24,115.2,7.6801]
[1743712228194,25.93252476,115.24,115.2,7.6801]
[1743712232403,8.82006157,115.24,115.2,7.6801]
[1743712232709,25.93252476,115.24,115.2,7.6801]
[1743712234011,25.93252476,115.24,115.18,30.3862]
[1743712234306,25.93252476,115.24,115.19,17.11246319]
[1743712235008,25.93252476,115.24,115.2,8.6805]
[1743712236514,0.14216157,115.24,115.2,25.79296319]
[1743712236715,8.6756,115.27,115.22,17.11246319]
[1743712236903,25.78806319,115.27,115.22,17.11246319]
[1743712237216,17.11246319,115.26,115.22,17.11246319]
[1743712237711,25.78846319,115.26,115.22,25.79106319]
[1743712238821,0.14216157,115.25,115.21,17.11246319]
[1743712239112,17.25462476,115.25,115.2,25.79296319]
[1743712240209,0.14216157,115.25,115.2,25.79296319]
[1743712240414,17.25462476,115.27,115.23,17.11246319]
[1743712240917,38.73526319,115.28,115.23,25.79026319]
[1743712241113,37.11246319,115.28,115.23,25.79026319]
[1743712241312,8.6733,115.3,115.25,17.11246319]
[1743712241519,25.55547923,115.31,115.26,17.11246319]
[1743712241815,25.55547923,115.31,115.23,57.007472]
[1743712241816,23.89177923,115.31,115.27,17.11246319]
[1743712242315,25.78476319,115.31,115.27,17.11246319]
[1743712242513,0.14216157,115.31,115.27,17.11246319]
[1743712242686,17.25462476,115.31,115.27,17.11246319]
[1743712242890,17.25462476,115.31,115.27,25.78736319]
[1743712243113,17.25462476,115.29,115.24,8.6775]
[1743712243314,17.11246319,115.28,115.23,18.029]
[1743712243513,17.11246319,115.27,115.23,27.44146319]
[1743712243695,17.11246319,115.27,115.23,8.6778]
[1743712243902,17.11246319,115.27,115.22,32.30766319]
[1743712244289,17.11246319,115.27,115.23,17.11246319]
[1743712244486,0.14216157,115.29,115.22,15.1952]
[1743712244487,0.14216157,115.29,115.25,17.11246319]
[1743712244714,17.11246319,115.3,115.22,55.826772]
[1743712244912,0.14216157,115.28,115.24,17.11246319]
[1743712245308,17.25462476,115.28,115.23,17.11246319]
[1743712245615,8.6739,115.29,115.25,17.11246319]
[1743712245802,17.25462476,115.28,115.22,15.1952]
[1743712245999,17.11246319,115.27,115.22,32.30766319]
[1743712247026,8.6757,115.27,115.23,17.11246319]
[1743712247204,25.78816319,115.27,115.23,17.11246319]
[1743712248314,25.78816319,115.27,115.22,6.5166]
[1743712248519,25.78816319,115.27,115.22,17.11246319]
[1743712248710,25.78816319,115.27,115.23,17.11246319]
[1743712249020,25.78816319,115.27,115.22,17.11246319]
[1743712249220,8.6757,115.27,115.23,17.11246319]
[1743712250421,8.6757,115.27,115.21,8.6793]
[1743712250422,8.6757,115.27,115.22,17.11246319]
[1743712250720,25.78816319,115.27,115.22,17.11246319]
[1743712251216,17.25462476,115.26,115.21,17.11246319]
[1743712251614,17.11246319,115.25,115.2,27.35086319]
[1743712252823,8.6775,115.24,115.2,25.79256319]
[1743712253905,0.14216157,115.26,115.22,17.11246319]
[1743712254225,33.48736319,115.28,115.24,17.11246319]
[1743712254727,16.3749,115.28,115.24,17.11246319]
[1743712255305,16.3749,115.28,115.24,25.78996319]
[1743712256329,18.76756319,115.3,115.25,17.11246319]
[1743712257627,27.44096319,115.3,115.25,25.78866319]
[1743712257814,27.44096319,115.3,115.25,17.11246319]
[1743712258227,37.25462476,115.29,115.24,17.11246319]
[1743712258430,17.11246319,115.28,115.23,25.79036319]
[1743712259521,37.25462476,115.29,115.23,25.79036319]
[1743712259725,25.78696319,115.28,115.23,25.79036319]
[1743712259924,0.14216157,115.27,115.23,17.11246319]
[1743712260125,37.25462476,115.27,115.22,17.11246319]
[1743712260301,17.11246319,115.26,115.21,26.35706319]
[1743712260721,17.11246319,115.26,115.21,35.03646319]
[1743712260943,17.11246319,115.26,115.21,27.33646319]
[1743712261130,17.11246319,115.26,115.21,10.224]
[1743712261298,17.11246319,115.26,115.21,27.33646319]
[1743712261622,25.78886319,115.26,115.21,27.33646319]
[1743712262122,8.6764,115.26,115.22,17.11246319]
[1743712262529,25.93032476,115.27,115.22,17.11246319]
[1743712262734,144.6734,115.3,115.25,17.11246319]
[1743712263037,25.78586319,115.3,115.25,17.11246319]
[1743712263238,17.11246319,115.29,115.25,17.11246319]
[1743712263606,17.11246319,115.29,115.24,17.11246319]
[1743712263807,25.78656319,115.29,115.25,8.6767]
[1743712265020,8.6741,115.29,115.25,17.11246319]
[1743712266019,17.11246319,115.3,115.25,17.11246319]
[1743712266020,25.92782476,115.3,115.25,17.11246319]
[1743712267641,25.92782476,115.3,115.25,25.78856319]
[1743712269038,17.11246319,115.31,115.26,17.11246319]
[1743712269343,25.92642476,115.32,115.27,17.11246319]
[1743712270242,8.81396157,115.32,115.27,17.11246319]
[1743712270420,25.92642476,115.32,115.27,17.11246319]
[1743712271435,25.92642476,115.32,115.27,25.78736319]
[1743712272532,8.81396157,115.32,115.27,25.78736319]
[1743712272737,8.81396157,115.32,115.28,17.11246319]
[1743712273032,25.92642476,115.32,115.27,25.78736319]
[1743712273543,17.11246319,115.31,115.27,25.78736319]
[1743712274429,25.78516319,115.31,115.27,25.78736319]
[1743712275407,25.92652476,115.32,115.27,25.78736319]
[1743712275839,25.78436319,115.32,115.27,25.78736319]
[1743712276028,8.6719,115.32,115.28,17.11246319]
[1743712276347,17.11246319,115.29,115.23,15.5596]
[1743712276637,25.78766319,115.27,115.23,1.5933]
[1743712276842,25.78766319,115.27,115.23,18.70576319]
[1743712277210,8.6752,115.27,115.23,18.70576319]
[1743712277511,25.78766319,115.27,115.23,18.70576319]
[1743712278223,8.6752,115.27,115.23,18.70576319]
[1743712278477,17.11246319,115.28,115.24,17.11246319]
[1743712278738,17.11246319,115.28,115.23,1.5933]
[1743712278739,24.95462476,115.3,115.25,25.78916319]
[1743712279106,33.62772476,115.3,115.25,25.78916319]
[1743712280536,24.81246319,115.3,115.25,8.6767]
[1743712280731,7.7,115.3,115.26,17.11246319]
[1743712280923,25.78506319,115.31,115.26,17.11246319]
[1743712281737,35.36444122,115.31,115.26,26.69184122]
[1743712282138,35.36444122,115.31,115.27,26.69184122]
[1743712282331,35.36444122,115.31,115.26,26.69184122]
[1743712283120,35.36444122,115.31,115.25,30.3686]
[1743712283316,26.69184122,115.3,115.25,35.36854122]
[1743712283956,35.36554122,115.29,115.25,35.36854122]
[1743712284421,8.6737,115.29,115.25,35.36854122]
[1743712284621,35.36554122,115.29,115.25,35.36854122]
[1743712284842,8.6737,115.29,115.25,35.36854122]
[1743712285051,26.69184122,115.29,115.25,35.36854122]
[1743712285425,35.36524122,115.3,115.25,35.36854122]
[1743712285850,26.69184122,115.3,115.26,26.69184122]
[1743712286151,26.69184122,115.33,115.28,26.69184122]
[1743712286542,8.81256157,115.34,115.28,26.69184122]
[1743712286943,26.69184122,115.33,115.28,26.69184122]
[1743712287258,35.36284122,115.33,115.29,8.6737]
[1743712287626,35.36284122,115.33,115.28,35.36584122]
[1743712287627,26.69184122,115.32,115.28,35.36584122]
[1743712288850,35.36364122,115.32,115.28,35.36584122]
[1743712290256,35.36364122,115.32,115.28,8.674]
[1743712290439,35.36364122,115.32,115.28,35.36584122]
[1743712290962,35.36254122,115.33,115.28,35.36584122]
[1743712291175,8.6707,115.33,115.28,35.36584122]
[1743712291353,35.36254122,115.33,115.28,35.36584122]
[1743712292057,8.6707,115.33,115.29,26.69184122]
[1743712292243,35.36254122,115.33,115.29,8.6731]
[1743712293339,26.69184122,115.35,115.3,26.69184122]
[1743712293542,8.6686,115.36,115.32,26.69184122]
[1743712293751,35.50210279,115.37,115.32,26.69184122]
[1743712294268,26.69184122,115.36,115.31,28.30424122]
[1743712294445,26.69184122,115.35,115.31,1.6124]
[1743712295556,35.36144122,115.35,115.31,10.2846]
[1743712296237,8.6696,115.35,115.31,10.2846]
[1743712296437,26.69184122,115.35,115.31,36.97644122]
[1743712296669,35.36074122,115.36,115.31,36.97644122]
[1743712297046,26.69184122,115.35,115.31,36.97644122]
[1743712297360,35.36374122,115.32,115.28,10.28]
[1743712300253,26.69184122,115.31,115.27,35.36674122]
[1743712300459,26.69184122,115.31,115.25,16.4655]
[1743712300668,26.69184122,115.3,115.25,43.15734122]
[1743712301780,25.75990528,115.3,115.25,33.55190528]
[1743712302471,17.08640528,115.31,115.27,17.08640528]
[1743712302669,25.75830528,115.32,115.27,17.08640528]
[1743712302966,17.08640528,115.32,115.27,17.08640528]
[1743712303168,17.08640528,115.32,115.28,17.08640528]
[1743712303374,25.89966685,115.33,115.28,17.08640528]
[1743712303577,17.8749,115.35,115.3,25.75940528]
[1743712303759,33.45600528,115.35,115.3,25.75940528]
[1743712303958,17.08640528,115.34,115.3,25.75940528]
[1743712305170,24.78640528,115.35,115.3,25.75940528]
[1743712305471,33.45560528,115.35,115.3,25.75940528]
[1743712305643,43.04368265,115.35,115.3,35.34748265]
[1743712306880,35.34368265,115.35,115.3,35.34748265]
[1743712307277,8.6692,115.35,115.3,35.34748265]
[1743712307576,35.34368265,115.35,115.28,30.3603]
[1743712307756,26.67448265,115.34,115.29,26.67448265]
[1743712308567,35.34368265,115.35,115.31,8.6722]
[1743712308882,26.67448265,115.35,115.31,8.6722]
[1743712309570,8.6688,115.36,115.31,8.6722]
[1743712309793,26.67448265,115.35,115.31,8.6722]
[1743712310284,35.34418265,115.35,115.31,8.6722]
[1743712311684,26.67448265,115.35,115.31,26.67448265]
[1743712313172,44.5926,115.32,115.31,26.67448265]
[1743712313373,44.5926,115.32,115.3,35.34748265]
[1743712313699,44.5926,115.32,115.31,26.67448265]
[1743712313997,44.5926,115.32,115.3,35.34748265]
[1743712316288,44.5926,115.32,115.31,26.67448265]
[1743712317490,44.5926,115.32,115.3,35.34748265]
[1743712319295,44.5926,115.32,115.31,26.67448265]
[1743712320206,44.5926,115.32,115.31,35.34668265]
[1743712321196,0.9958,115.32,115.31,54.28065465]
[1743712321409,26.67448265,115.39,115.32,18.933972]
[1743712321617,8.80826157,115.4,115.35,26.67448265]
[1743712321915,26.67448265,115.37,115.31,30.3528]
[1743712322104,26.67448265,115.37,115.32,26.67448265]
[1743712322485,26.67448265,115.37,115.33,8.6707]
[1743712322691,26.67448265,115.37,115.33,35.34518265]
[1743712323082,26.67448265,115.36,115.31,26.67448265]
[1743712323287,26.67448265,115.35,115.31,26.67448265]
[1743712323797,16.3471,115.38,115.33,26.67448265]
[1743712324012,8.6666,115.39,115.34,26.67448265]
[1743712324216,26.67448265,115.38,115.33,26.67448265]
[1743712324520,8.80796157,115.4,115.35,26.67448265]
[1743712324704,26.67448265,115.4,115.36,26.67448265]
[1743712325019,26.67448265,115.4,115.34,18.933972]
[1743712325020,26.67448265,115.4,115.35,26.67448265]
[1743712325316,10.224,115.41,115.35,26.67448265]
[1743712325521,26.67448265,115.4,115.36,26.67448265]
[1743712325722,17.05431263,115.4,115.36,17.05431263]
[1743712326317,25.71921263,115.41,115.36,17.05431263]
[1743712326495,0.14216157,115.44,115.38,25.72051263]
[1743712326684,17.05431263,115.43,115.38,25.72051263]
[1743712327087,0.14216157,115.44,115.38,25.72051263]
[1743712327289,8.6625,115.44,115.39,17.05431263]
[1743712327495,20.0,115.45,115.4,17.05431263]
[1743712327496,25.71641263,115.45,115.4,17.05431263]
[1743712327712,17.05431263,115.45,115.4,17.05431263]
[1743712327897,17.05431263,115.45,115.41,17.05431263]
[1743712328096,25.8578742,115.46,115.41,17.05431263]
[1743712328301,17.05431263,115.45,115.41,17.05431263]
[1743712328520,8.6618,115.45,115.41,25.71891263]
[1743712328728,20.0,115.47,115.41,25.71891263]
[1743712328904,17.05431263,115.46,115.41,25.71891263]
[1743712329505,17.1964742,115.47,115.42,17.05431263]
[1743712329701,25.8569742,115.47,115.42,17.05431263]
[1743712329904,17.05431263,115.45,115.4,17.05431263]
[1743712331222,17.05431263,115.45,115.4,17.05431263]
[1743712331415,17.05431263,115.46,115.41,17.05431263]
[1743712331810,25.71581263,115.46,115.41,25.71881263]
[1743712332212,17.05431263,115.46,115.41,25.71881263]
[1743712332729,25.71491263,115.47,115.42,17.05431263]
[1743712332911,17.05431263,115.46,115.41,25.71881263]
[1743712333514,25.71541263,115.46,115.41,25.71881263]
[1743712334126,17.05431263,115.46,115.41,25.71881263]
[1743712335029,8.6606,115.47,115.42,17.05431263]
[1743712335217,17.05431263,115.46,115.41,25.71881263]
[1743712335412,17.05431263,115.46,115.38,168.49338409]
[1743712335413,17.05431263,115.44,115.4,25.71961263]
[1743712335613,25.71691263,115.44,115.39,25.72021263]
[1743712335826,8.6617,115.45,115.39,25.72021263]
[1743712336010,17.05431263,115.45,115.4,17.05431263]
[1743712336333,17.05431263,115.45,115.41,17.05431263]
[1743712336832,17.05431263,115.45,115.4,17.05431263]
[1743712337008,17.05431263,115.44,115.39,25.72021263]
[1743712337531,8.6617,115.45,115.39,8.6659]
[1743712337718,17.05431263,115.43,115.39,8.6659]
[1743712338025,17.05431263,115.44,115.39,25.72021263]
[1743712338212,17.05431263,115.43,115.39,8.6659]
[1743712339522,25.71771263,115.43,115.39,8.6659]
[1743712339842,25.71771263,115.43,115.38,25.72091263]
[1743712340031,0.14216157,115.45,115.4,17.05431263]
[1743712340343,8.80276157,115.47,115.42,17.05431263]
[1743712340639,25.8570742,115.47,115.42,17.05431263]
[1743712340835,17.05431263,115.47,115.43,17.05431263]
[1743712341513,17.05431263,115.47,115.43,8.663]
[1743712341711,26.61665503,115.47,115.43,35.27965503]
[1743712342235,26.61665503,115.47,115.43,8.663]
[1743712342934,26.61665503,115.48,115.44,26.61665503]
[1743712343140,26.61665503,115.48,115.43,35.27965503]
[1743712343426,26.61665503,115.47,115.43,35.27985503]
[1743712343630,35.27695503,115.47,115.43,35.27985503]
[1743712344135,26.61665503,115.47,115.43,35.27985503]
[1743712344522,35.27645503,115.48,115.43,35.27985503]
[1743712347534,26.61665503,115.48,115.43,35.27985503]
[1743712347838,35.27615503,115.48,115.44,26.61665503]
[1743712348214,35.27575503,115.49,115.44,26.61665503]
[1743712348526,26.61665503,115.49,115.45,26.61665503]
[1743712349739,35.27615503,115.48,115.44,35.27885503]
[1743712350038,35.27615503,115.48,115.44,8.6622]
[1743712351043,26.61665503,115.48,115.44,8.6622]
[1743712352737,26.61665503,115.48,115.44,35.27885503]
[1743712352940,26.61665503,115.48,115.44,8.6622]
[1743712353142,26.61665503,115.48,115.44,35.27885503]
[1743712353329,35.27615503,115.48,115.44,35.27885503]
[1743712353530,26.61665503,115.48,115.44,35.27885503]
[1743712354030,35.27625503,115.48,115.44,35.27885503]
[1743712355137,35.27625503,115.48,115.44,8.6622]
[1743712355650,26.61665503,115.47,115.44,8.6622]
[1743712356151,26.61665503,115.45,115.41,82.732]
[1743712356322,26.61665503,115.43,115.39,26.61665503]
[1743712356523,26.61665503,115.43,115.39,35.28245503]
[1743712357724,35.27995503,115.43,115.39,8.6658]
[1743712358335,26.61665503,115.42,115.38,8.6666]
[1743712359082,26.61665503,115.41,115.37,333.0874]
[1743712359374,26.61665503,115.41,115.37,8.6674]
[1743712359673,26.61665503,115.41,115.37,35.28405503]
[1743712360242,26.61665503,115.42,115.38,26.61665503]
[1743712361073,26.61665503,115.42,115.37,56.95345503]
[1743712362167,26.61665503,115.42,115.38,26.61665503]
[1743712362471,26.61665503,115.43,115.39,26.61665503]
[1743712363376,26.61665503,115.43,115.39,35.28255503]
[1743712363686,17.04646688,115.43,115.39,8.6659]
[1743712365288,17.04646688,115.43,115.39,25.71236688]
[1743712366869,8.6636,115.43,115.39,8.6659]
[1743712367073,17.04646688,115.42,115.39,8.6659]
[1743712368567,8.79956157,115.51,115.44,18.933972]
[1743712368767,0.14216157,115.51,115.47,17.04646688]
[1743712368970,17.04646688,115.52,115.47,17.04646688]
[1743712369766,26.73537925,115.52,115.47,26.59321768]
[1743712370372,26.73537925,115.48,115.41,7.8501]
[1743712370583,26.59321768,115.45,115.42,26.0]
[1743712371093,26.59321768,115.45,115.41,34.44331768]
[1743712371388,0.14216157,115.54,115.46,25.576372]
[1743712371573,26.73537925,115.54,115.5,26.59321768]
[1743712372092,26.59321768,115.54,115.49,26.59321768]
[1743712372290,26.59321768,115.52,115.48,8.6595]
[1743712372468,26.59321768,115.51,115.48,8.6595]
[1743712373002,26.59321768,115.49,115.43,6.3028]
[1743712373164,26.59321768,115.49,115.44,45.24286654]
[1743712373365,26.59321768,115.5,115.46,45.52718968]
[1743712373570,26.59321768,115.51,115.47,26.59321768]
[1743712373774,26.59321768,115.52,115.47,26.59321768]
[1743712374464,26.59321768,115.51,115.47,35.25311768]
[1743712374679,26.59321768,115.51,115.47,26.59321768]
[1743712375802,26.59321768,115.5,115.46,26.59321768]
[1743712375991,26.59321768,115.5,115.45,35.25451768]
[1743712377506,26.59321768,115.5,115.46,26.59321768]
[1743712377803,35.25131768,115.5,115.46,26.59321768]
[1743712378580,26.59321768,115.49,115.45,35.25451768]
[1743712378782,35.25211768,115.49,115.45,8.6613]
[1743712379992,35.25211768,115.49,115.44,35.25541768]
[1743712380503,8.6589,115.49,115.45,26.59321768]
[1743712381193,8.6583,115.5,115.45,26.59321768]
[1743712381401,35.25151768,115.5,115.45,26.59321768]
[1743712381706,26.59321768,115.48,115.44,26.59321768]
[1743712381998,8.6602,115.47,115.44,26.59321768]
[1743712382170,35.25341768,115.47,115.42,35.25681768]
[1743712382370,26.59321768,115.45,115.41,10.1673]
[1743712382596,26.59321768,115.45,115.41,1.5029]
[1743712383176,26.59321768,115.45,115.41,10.1676]
[1743712384002,26.59321768,115.45,115.41,36.76081768]
[1743712384921,35.25501768,115.45,115.41,36.76081768]
[1743712385205,35.25501768,115.45,115.41,10.1676]
[1743712385884,26.59321768,115.45,115.41,36.76081768]
[1743712386704,8.6613,115.46,115.41,36.76081768]
[1743712387002,26.59321768,115.44,115.41,1.5029]
[1743712387203,26.59321768,115.44,115.4,26.59321768]
[1743712387394,26.59321768,115.44,115.39,351.07321768]
[1743712387596,26.59321768,115.44,115.4,26.59321768]
[1743712388301,35.25601768,115.44,115.4,35.25871768]
[1743712388472,8.6628,115.44,115.4,35.25871768]
[1743712388717,8.0972,115.49,115.43,26.59321768]
[1743712389033,26.59321768,115.49,115.44,26.59321768]
[1743712389536,35.25231768,115.49,115.44,26.59321768]
[1743712389840,35.25231768,115.49,115.45,26.59321768]
[1743712390020,35.25231768,115.49,115.44,26.59321768]
[1743712390443,35.25231768,115.49,115.44,35.25541768]
[1743712393666,8.80016157,115.5,115.44,35.25541768]
[1743712393955,35.25121768,115.5,115.45,26.59321768]
[1743712395066,26.59321768,115.49,115.44,35.25541768]
[1743712395442,26.59321768,115.48,115.44,8.6622]
[1743712395634,26.59321768,115.48,115.44,35.25541768]
[1743712395952,35.25261768,115.49,115.44,35.25541768]
[1743712397045,35.25261768,115.49,115.45,26.59321768]
[1743712397247,35.25041768,115.51,115.46,26.59321768]
[1743712398055,26.59321768,115.49,115.45,26.59321768]
[1743712399256,8.6595,115.48,115.45,26.59321768]
[1743712399554,26.59321768,115.47,115.43,36.76661768]
[1743712401152,26.59321768,115.47,115.42,49.46351768]
[1743712401455,35.25421768,115.46,115.42,43.01691768]
[1743712401631,8.661,115.46,115.42,43.01691768]
[1743712401827,35.25381768,115.47,115.42,43.01691768]
[1743712402027,35.25381768,115.47,115.43,26.59321768]
[1743712403135,35.25381768,115.47,115.43,35.25621768]
[1743712404755,35.25381768,115.47,115.42,35.25701768]
[1743712406654,35.25381768,115.47,115.42,26.59321768]
[1743712407860,35.25381768,115.47,115.42,35.25691768]
[1743712408261,8.6606,115.47,115.42,35.25691768]
[1743712408562,8.6595,115.48,115.44,35.25511768]
[1743712409756,35.25271768,115.48,115.43,35.25601768]
[1743712410338,26.59321768,115.46,115.41,35.25761768]
[1743712410640,35.25541768,115.45,115.41,8.6644]
[1743712411460,35.25541768,115.45,115.41,35.25761768]
[1743712413350,35.25541768,115.45,115.4,36.77991768]
[1743712413684,26.59321768,115.44,115.4,36.77991768]
[1743712413965,35.25541768,115.45,115.4,36.77991768]
[1743712414167,35.25541768,115.45,115.4,10.1867]
[1743712414360,26.59321768,115.44,115.39,8.666]
[1743712414544,26.59321768,115.43,115.38,8.6665]
[1743712414742,26.59321768,115.43,115.38,35.25971768]
[1743712415242,8.664,115.42,115.38,35.25971768]
[1743712415464,35.25721768,115.42,115.38,35.25971768]
[1743712415668,35.25721768,115.42,115.37,1.6367]
[1743712415669,26.59321768,115.41,115.37,1.6367]
[1743712415969,26.59321768,115.4,115.35,35.26241768]
[1743712416647,26.59321768,115.4,115.36,26.59321768]
[1743712416976,16.364,115.42,115.37,26.59321768]
[1743712417176,8.6629,115.44,115.4,26.59321768]
[1743712417354,35.25611768,115.44,115.4,26.59321768]
[1743712417751,35.25611768,115.44,115.39,35.25901768]
[1743712418263,26.59321768,115.43,115.39,35.25901768]
[1743712418692,26.59321768,115.44,115.4,26.59321768]
[1743712419060,63.07747925,115.45,115.4,26.59321768]
[1743712419659,63.07747925,115.45,115.41,8.6647]
[1743712419852,26.59321768,115.44,115.39,8.6662]
[1743712420169,26.59321768,115.43,115.39,8.6662]
[1743712420671,26.59321768,115.43,115.38,35.25971768]
[1743712420868,26.59321768,115.43,115.39,26.59321768]
[1743712421365,26.73537925,115.44,115.39,26.59321768]
[1743712421779,35.39807925,115.44,115.4,8.6655]
[1743712422975,35.25591768,115.44,115.4,8.6655]
[1743712423276,42.95521768,115.45,115.4,35.25871768]
[1743712423781,26.59321768,115.44,115.4,35.25871768]
[1743712423960,26.59321768,115.44,115.4,8.6655]
[1743712424373,35.25571768,115.44,115.4,8.6655]
[1743712426084,26.59321768,115.44,115.4,8.6655]
[1743712427376,35.25521768,115.45,115.4,35.25871768]
[1743712428379,26.59321768,115.45,115.4,35.25871768]
[1743712428859,35.25491768,115.45,115.4,35.25871768]
[1743712430980,28.16851768,115.49,115.44,26.59321768]
[1743712431164,26.59321768,115.51,115.46,26.59321768]
[1743712432889,26.59321768,115.51,115.47,8.6602]
[1743712433089,92.32614886,115.55,115.47,8.6602]
[1743712433090,20.0,115.59,115.5,53.18643536]
[1743712433290,152.7364,115.61,115.5,53.18643536]
[1743712433291,26.59321768,115.6,115.55,26.59321768]
[1743712433787,26.59321768,115.58,115.53,26.59321768]
[1743712434002,26.59321768,115.57,115.53,26.59321768]
[1743712434178,26.59321768,115.57,115.52,26.59321768]
[1743712435185,26.59321768,115.57,115.53,26.59321768]
[1743712435577,35.24601768,115.57,115.53,26.59321768]
[1743712436177,35.24601768,115.57,115.51,16.3568]
[1743712436178,35.24601768,115.57,115.52,26.59321768]
[1743712436706,26.59321768,115.56,115.5,18.933972]
[1743712436882,26.59321768,115.54,115.5,26.59321768]
[1743712438486,35.24701768,115.56,115.51,26.59321768]
[1743712438893,26.59321768,115.55,115.51,26.59321768]
[1743712439666,26.59321768,115.55,115.51,35.25021768]
[1743712439887,0.14216157,115.57,115.52,26.59321768]
[1743712439888,35.38847925,115.57,115.52,26.59321768]
[1743712440172,26.59321768,115.56,115.51,26.59321768]
[1743712440371,26.59321768,115.55,115.51,26.59321768]
[1743712440577,26.59321768,115.55,115.5,26.59321768]
[1743712441199,26.59321768,115.51,115.47,1.5389]
[1743712441399,26.59321768,115.5,115.45,40.07195201]
[1743712441692,26.59321768,115.48,115.45,13.47873433]
[1743712441898,26.59321768,115.47,115.45,13.47873433]
[1743712442099,26.59321768,115.48,115.45,13.47873433]
[1743712442499,26.59321768,115.47,115.45,13.47873433]
[1743712442808,26.59321768,115.48,115.44,26.59321768]
[1743712443694,42.57666121,115.48,115.44,42.57666121]
[1743712443872,51.23606121,115.49,115.44,42.57666121]
[1743712444289,42.57666121,115.48,115.44,42.57666121]
[1743712444601,42.57666121,115.48,115.43,52.80606121]